fUST/lending_fUST_20250720
["ID","MTS","AMOUNT","RATE_DAILY","PERIOD"]
[373369064,1752970234570,-460.0,0.00017782,2]
[373369065,1752970234580,-460.0,0.00017782,2]
[373369066,1752970234590,-460.0,0.00017782,2]
[373369067,1752970234599,-460.0,0.00017782,2]
[373369068,1752970234609,-460.0,0.00017782,2]
[373369069,1752970234619,-460.0,0.00017782,2]
[373369070,1752970234628,-460.0,0.00017782,2]
[373369071,1752970234638,-460.0,0.00017782,2]
[373369072,1752970234648,-460.0,0.00017782,2]
[373369073,1752970234657,-460.0,0.00017782,2]
[373369074,1752970234667,-460.0,0.00017782,2]
[373369075,1752970234677,-460.0,0.00017782,2]
[373369076,1752970234686,-460.0,0.00017782,2]
[373369077,1752970234699,-460.0,0.00017782,2]
[373369078,1752970234712,-460.0,0.00017782,2]
[373369079,1752970234721,-460.0,0.00017782,2]
[373369080,1752970234731,-460.0,0.00017782,2]
[373369081,1752970234740,-460.0,0.00017782,2]
[373369082,1752970234750,-460.0,0.00017782,2]
[373369083,1752970234759,-460.0,0.00017782,2]
[373369084,1752970234769,-460.0,0.00017782,2]
[373369085,1752970234778,-460.0,0.00017782,2]
[373369086,1752970234788,-460.0,0.00017782,2]
[373369087,1752970234798,-460.0,0.00017782,2]
[373369088,1752970234808,-164.10951732,0.00017782,2]
[373369089,1752970234817,-460.0,0.00017782,2]
[373369090,1752970234827,-596.01132318,0.00017782,2]
[373369091,1752970234836,-460.0,0.00017782,2]
[373369092,1752970234845,-460.0,0.00017782,2]
[373369093,1752970234855,-460.0,0.00017782,2]
[373369094,1752970234864,-460.0,0.00017782,2]
[373369095,1752970234874,-460.0,0.00017782,2]
[373369096,1752970234883,-460.0,0.00017782,2]
[373369097,1752970234893,-460.0,0.00017782,2]
[373369098,1752970234903,-460.0,0.00017782,2]
[373369099,1752970234912,-460.0,0.00017782,2]
[373369100,1752970234921,-401.06211335,0.00017782,2]
[373369101,1752970234930,-361.7808345,0.00017783,2]
[373369102,1752970234941,-460.80861372,0.00017783,2]
[373369103,1752970234950,-460.0,0.00017783,2]
[373369104,1752970234960,-460.0,0.00017783,2]
[373369105,1752970234970,-460.0,0.00017783,2]
[373369106,1752970234979,-461.1115783,0.00017783,2]
[373369107,1752970234989,-460.0,0.00017783,2]
[373369108,1752970234999,-460.0,0.00017783,2]
[373369109,1752970235009,-460.0,0.00017783,2]
[373369110,1752970235019,-462.04488447,0.00017783,2]
[373369111,1752970235029,-460.0,0.00017783,2]
[373369112,1752970235038,-460.0,0.00017783,2]
[373369113,1752970235047,-558.8217057,0.00017783,2]
[373369114,1752970235057,-460.0,0.00017783,2]
[373369115,1752970235067,-460.0,0.00017783,2]
[373369116,1752970235077,-460.0,0.00017783,2]
[373369117,1752970235086,-460.0,0.00017783,2]
[373369118,1752970235096,-460.0,0.00017783,2]
[373369119,1752970235105,-460.0,0.00017783,2]
[373369120,1752970235115,-460.0,0.00017783,2]
[373369121,1752970235124,-460.0,0.00017783,2]
[373369122,1752970235133,-460.0,0.00017783,2]
[373369123,1752970235143,-460.0,0.00017783,2]
[373369124,1752970235152,-460.0,0.00017783,2]
[373369125,1752970235161,-460.0,0.00017783,2]
[373369126,1752970235171,-460.0,0.00017783,2]
[373369127,1752970235181,-460.0,0.00017783,2]
[373369128,1752970235191,-460.0,0.00017783,2]
[373369129,1752970235201,-460.0,0.00017783,2]
[373369130,1752970235210,-413.31971394,0.00017783,2]
[373369131,1752970235324,-460.0,0.00017783,2]
[373369132,1752970235334,-460.0,0.00017783,2]
[373369133,1752970235344,-460.0,0.00017783,2]
[373369134,1752970235354,-460.0,0.00017783,2]
[373369135,1752970235363,-182.63241103,0.00017783,2]
[373369136,1752970235373,-460.0,0.00017783,2]
[373369137,1752970235383,-460.0,0.00017783,2]
[373369138,1752970235392,-460.0,0.00017783,2]
[373369139,1752970235401,-460.0,0.00017783,2]
[373369140,1752970235410,-465.86622321,0.00017783,2]
[373369141,1752970235419,-577.17,0.00017783,2]
[373369142,1752970235428,-460.0,0.00017783,2]
[373369143,1752970235438,-460.0,0.00017783,2]
[373369144,1752970235448,-460.0,0.00017783,2]
[373369145,1752970235457,-460.0,0.00017783,2]
[373369146,1752970235467,-460.0,0.00017783,2]
[373369147,1752970235476,-460.0,0.00017783,2]
[373369148,1752970235487,-460.0,0.00017783,2]
[373369149,1752970235497,-1417.81,0.00017783,2]
[373369150,1752970235506,-460.0,0.00017784,2]
[373369151,1752970235515,-598.11,0.00017784,2]
[373369152,1752970235524,-460.0,0.00017784,2]
[373369153,1752970235535,-478.3,0.00017784,2]
[373369154,1752970235544,-460.0,0.00017784,2]
[373369155,1752970235553,-460.0,0.00017784,2]
[373369156,1752970235564,-460.0,0.00017784,2]
[373369157,1752970235573,-504.4691353,0.00017784,2]
[373369158,1752970235582,-460.0,0.00018054,2]
[373369159,1752970235591,-460.0,0.00018054,2]
[373369160,1752970235600,-460.0,0.00018054,2]
[373369161,1752970235609,-837.38,0.00018054,2]
[373369162,1752970235619,-460.0,0.00018054,2]
[373369163,1752970235629,-460.0,0.00018054,2]
[373369164,1752970235639,-1199.84,0.00018054,2]
[373369165,1752970235648,-460.0,0.00018054,2]
[373369166,1752970235658,-460.0,0.00018054,2]
[373369167,1752970235667,-460.0,0.00018054,2]
[373369168,1752970235677,-465.0,0.00018054,2]
[373369169,1752970235686,-460.0,0.00018054,2]
[373369170,1752970235696,-460.0,0.00018054,2]
[373369171,1752970235710,-500.0,0.00018054,2]
[373369172,1752970235720,-500.0,0.00018054,2]
[373369173,1752970235731,-500.0,0.00018054,2]
[373369174,1752970235742,-500.0,0.00018054,2]
[373369175,1752970235752,-500.0,0.00018054,2]
[373369176,1752970235763,-334.71091973,0.00018054,2]
[373369177,1752970235774,-460.0,0.00018055,2]
[373369178,1752970235784,-217.9672743,0.00018055,2]
[373369179,1752970235793,-460.0,0.00018055,2]
[373369180,1752970235803,-1.36849465,0.00018055,2]
[373369181,1752970235938,-458.63150535,0.00018055,2]
[373369182,1752970235948,-460.0,0.00018055,2]
[373369183,1752970235958,-460.0,0.00018055,2]
[373369184,1752970235968,-460.0,0.00018055,2]
[373369185,1752970235977,-460.0,0.00018055,2]
[373369186,1752970235986,-404.2321672,0.00018055,2]
[373369187,1752970235995,-460.0,0.00018055,2]
[373369188,1752970236005,-460.0,0.00018055,2]
[373369189,1752970236014,-460.0,0.00018055,2]
[373369190,1752970236023,-460.0,0.00018055,2]
[373369191,1752970236033,-460.0,0.00018055,2]
[373369192,1752970236043,-460.0,0.00018055,2]
[373369193,1752970236052,-460.0,0.00018055,2]
[373369194,1752970236062,-460.0,0.00018055,2]
[373369195,1752970236072,-460.0,0.00018055,2]
[373369196,1752970236081,-460.0,0.00018055,2]
[373369197,1752970236090,-660.77,0.00018055,2]
[373369198,1752970236100,-460.0,0.00018055,2]
[373369199,1752970236109,-460.0,0.00018055,2]
[373369200,1752970236118,-460.0,0.00018055,2]
[373369201,1752970236128,-460.0,0.00018055,2]
[373369202,1752970236137,-460.0,0.00018055,2]
[373369203,1752970236147,-500.0,0.00018055,2]
[373369204,1752970236156,-460.0,0.00018055,2]
[373369205,1752970236166,-460.0,0.00018055,2]
[373369206,1752970236175,-460.0,0.00018055,2]
[373369207,1752970236185,-460.0,0.00018055,2]
[373369208,1752970236195,-460.0,0.00018055,2]
[373369209,1752970236204,-460.0,0.00018055,2]
[373369210,1752970236214,-460.0,0.00018055,2]
[373369211,1752970236223,-460.0,0.00018055,2]
[373369212,1752970236233,-428.51895986,0.00018056,2]
[373369213,1752970236242,-460.0,0.00018056,2]
[373369214,1752970236251,-460.0,0.00018056,2]
[373369215,1752970236260,-460.0,0.00018056,2]
[373369216,1752970236270,-460.0,0.00018057,2]
[373369217,1752970236279,-460.0,0.00018057,2]
[373369218,1752970236288,-571.97414354,0.00018057,2]
[373369219,1752970236297,-1417.81,0.00018057,2]
[373369220,1752970236306,-598.11,0.00018058,2]
[373369221,1752970236315,-478.3,0.00018058,2]
[373369222,1752970236324,-460.0,0.00018058,2]
[373369223,1752970236335,-520.37179257,0.00018222,2]
[373369224,1752970236344,-500.0,0.00018321,2]
[373369225,1752970236353,-273.42693762,0.00018321,2]
[373369226,1752970236363,-460.0,0.00018328,2]
[373369227,1752970236374,-460.0,0.00018328,2]
[373369228,1752970236385,-460.0,0.00018328,2]
[373369229,1752970236394,-837.38,0.00018328,2]
[373369230,1752970236404,-460.0,0.00018328,2]
[373369231,1752970236413,-460.0,0.00018328,2]
[373369232,1752970236423,-1199.84,0.00018328,2]
[373369233,1752970236435,-460.0,0.00018328,2]
[373369234,1752970236445,-460.0,0.00018328,2]
[373369235,1752970236455,-465.0,0.00018328,2]
[373369236,1752970236464,-460.0,0.00018328,2]
[373369237,1752970236474,-460.0,0.00018329,2]
[373369238,1752970236484,-460.0,0.00018329,2]
[373369239,1752970236497,-389.66048036,0.00018329,2]
[373369240,1752970236507,-460.0,0.00018329,2]
[373369241,1752970236519,-460.0,0.00018329,2]
[373369242,1752970236531,-460.0,0.00018329,2]
[373369243,1752970236541,-460.0,0.00018329,2]
[373369244,1752970236551,-460.0,0.00018329,2]
[373369245,1752970236561,-460.0,0.00018329,2]
[373369246,1752970236572,-268.39,0.00018329,2]
[373369247,1752970236582,-460.0,0.00018329,2]
[373369248,1752970236591,-460.0,0.00018329,2]
[373369249,1752970236602,-660.77,0.00018329,2]
[373369250,1752970236612,-460.0,0.00018329,2]
[373369251,1752970236622,-460.0,0.00018329,2]
[373369252,1752970236632,-460.0,0.00018329,2]
[373369253,1752970236641,-460.0,0.00018329,2]
[373369254,1752970236652,-460.0,0.00018329,2]
[373369255,1752970236662,-460.0,0.00018329,2]
[373369256,1752970236671,-460.0,0.00018329,2]
[373369257,1752970236681,-566.84792562,0.00018329,2]
[373369258,1752970236691,-460.0,0.00018329,2]
[373369259,1752970236701,-460.0,0.00018329,2]
[373369260,1752970236710,-460.0,0.00018329,2]
[373369261,1752970236720,-460.0,0.0001833,2]
[373369262,1752970236730,-460.0,0.0001833,2]
[373369263,1752970236739,-460.0,0.00018331,2]
[373369264,1752970236750,-1417.81,0.00018331,2]
[373369265,1752970236760,-598.11,0.00018332,2]
[373369266,1752970236770,-478.3,0.00018332,2]
[373369267,1752970236779,-460.0,0.00018332,2]
[373369268,1752970236789,-460.0,0.00018602,2]
[373369269,1752970236798,-460.0,0.00018602,2]
[373369270,1752970236807,-837.38,0.00018602,2]
[373369271,1752970236815,-460.0,0.00018602,2]
[373369272,1752970236824,-1199.84,0.00018602,2]
[373369273,1752970236833,-460.0,0.00018602,2]
[373369274,1752970236841,-465.0,0.00018602,2]
[373369275,1752970236850,-460.0,0.00018602,2]
[373369276,1752970236860,-460.0,0.00018603,2]
[373369277,1752970236869,-360.14516031,0.00018603,2]
[373369278,1752970236877,-268.39,0.00018603,2]
[373369279,1752970236886,-460.0,0.00018603,2]
[373369280,1752970236895,-460.0,0.00018603,2]
[373369281,1752970236904,-460.0,0.00018603,2]
[373369282,1752970236917,-460.0,0.00018603,2]
[373369283,1752970236926,-460.0,0.00018603,2]
[373369284,1752970236935,-460.0,0.00018603,2]
[373369285,1752970236944,-460.0,0.00018603,2]
[373369286,1752970236953,-660.77,0.00018603,2]
[373369287,1752970236962,-460.0,0.00018603,2]
[373369288,1752970236971,-460.0,0.00018603,2]
[373369289,1752970236980,-460.0,0.00018603,2]
[373369290,1752970236989,-265.56,0.00018603,2]
[373369291,1752970236998,-460.0,0.00018603,2]
[373369292,1752970237008,-460.0,0.00018603,2]
[373369293,1752970237016,-460.0,0.00018603,2]
[373369294,1752970237025,-460.0,0.00018603,2]
[373369295,1752970237034,-460.0,0.00018603,2]
[373369296,1752970237043,-460.0,0.00018604,2]
[373369297,1752970237052,-460.0,0.00018604,2]
[373369298,1752970237061,-460.0,0.00018605,2]
[373369299,1752970237070,-1417.81,0.00018605,2]
[373369300,1752970237079,-598.11,0.00018606,2]
[373369301,1752970237088,-478.3,0.00018606,2]
[373369302,1752970237097,-460.0,0.00018606,2]
[373369303,1752970237105,-460.0,0.00018607,2]
[373369304,1752970237114,-480.03345279,0.00018607,2]
[373369305,1752970237123,-460.0,0.00018607,2]
[373369306,1752970237132,-460.0,0.00018876,2]
[373369307,1752970237140,-460.0,0.00018876,2]
[373369308,1752970237150,-837.38,0.00018876,2]
[373369309,1752970237158,-460.0,0.00018876,2]
[373369310,1752970237167,-1199.84,0.00018876,2]
[373369311,1752970237176,-460.0,0.00018876,2]
[373369312,1752970237185,-465.0,0.00018876,2]
[373369313,1752970237195,-460.0,0.00018876,2]
[373369314,1752970237204,-460.0,0.00018877,2]
[373369315,1752970237214,-460.0,0.00018877,2]
[373369316,1752970237223,-460.0,0.00018877,2]
[373369317,1752970237231,-583.84,0.00018877,2]
[373369318,1752970237240,-460.0,0.00018877,2]
[373369319,1752970237249,-460.0,0.00018877,2]
[373369320,1752970237258,-460.0,0.00018877,2]
[373369321,1752970237266,-460.0,0.00018877,2]
[373369322,1752970237276,-660.77,0.00018877,2]
[373369323,1752970237285,-460.0,0.00018877,2]
[373369324,1752970237294,-460.0,0.00018877,2]
[373369325,1752970237303,-460.0,0.00018877,2]
[373369326,1752970237313,-460.0,0.00018877,2]
[373369327,1752970237322,-460.0,0.00018877,2]
[373369328,1752970237331,-460.0,0.00018877,2]
[373369329,1752970237341,-201.96146748,0.00018877,2]
[373369330,1752970237353,-460.0,0.00018878,2]
[373369332,1752970237365,-460.0,0.00018878,2]
[373369333,1752970237373,-1417.81,0.00018879,2]
[373369334,1752970237382,-598.11,0.0001888,2]
[373369335,1752970237391,-478.3,0.0001888,2]
[373369336,1752970237400,-460.0,0.0001888,2]
[373369338,1752970237410,-460.0,0.00018881,2]
[373369339,1752970237420,-460.0,0.00018881,2]
[373369340,1752970237429,-501.97038944,0.00018899,2]
[373369341,1752970237438,-810.72284406,0.000189,2]
[373369342,1752970237448,-3679.95675928,0.000189,2]
[373369343,1752970237457,-3679.95675916,0.00019141,2]
[373369344,1752970237466,-460.0,0.0001915,2]
[373369345,1752970237475,-460.0,0.0001915,2]
[373369346,1752970237489,-837.38,0.0001915,2]
[373369347,1752970237499,-227.65,0.0001915,2]
[373369348,1752970237508,-1199.84,0.0001915,2]
[373369349,1752970237517,-460.0,0.0001915,2]
[373369350,1752970237526,-465.0,0.0001915,2]
[373369351,1752970237537,-399.08,0.0001915,2]
[373369352,1752970237546,-460.0,0.00019151,2]
[373369353,1752970237555,-556.91,0.00019151,2]
[373369355,1752970237565,-460.0,0.00019151,2]
[373369356,1752970237575,-460.0,0.00019151,2]
[373369358,1752970237584,-460.0,0.00019151,2]
[373369360,1752970237593,-460.0,0.00019151,2]
[373369362,1752970237602,-460.0,0.00019151,2]
[373369364,1752970237612,-660.77,0.00019151,2]
[373369366,1752970237621,-460.0,0.00019151,2]
[373369367,1752970237630,-460.0,0.00019151,2]
[373369368,1752970237639,-460.0,0.00019151,2]
[373369369,1752970237657,-390.63,0.00019151,2]
[373369370,1752970237669,-460.0,0.00019151,2]
[373369371,1752970237678,-460.0,0.00019151,2]
[373369372,1752970237688,-335.74,0.00019152,2]
[373369373,1752970237698,-460.0,0.00019152,2]
[373369374,1752970237708,-1417.81,0.00019153,2]
[373369375,1752970237718,-598.11,0.00019154,2]
[373369376,1752970237728,-478.3,0.00019154,2]
[373369377,1752970237738,-460.0,0.00019154,2]
[373369378,1752970237748,-460.0,0.00019155,2]
[373369379,1752970237758,-460.0,0.00019155,2]
[373369380,1752970237768,-191.03591,0.00019178,2]
[373369381,1752970237778,-3679.95675916,0.00019383,2]
[373369383,1752970237788,-500.0,0.0001942,2]
[373369386,1752970237798,-460.0,0.00019424,2]
[373369387,1752970237808,-460.0,0.00019424,2]
[373369388,1752970237818,-837.38,0.00019424,2]
[373369389,1752970237828,-1199.84,0.00019424,2]
[373369390,1752970237837,-198.35,0.00019424,2]
[373369391,1752970237847,-465.0,0.00019424,2]
[373369392,1752970237856,-190.07743784,0.00019425,2]
[373369393,1752970237866,-460.0,0.00019425,2]
[373369394,1752970237875,-286.92,0.00019425,2]
[373369395,1752970237886,-460.0,0.00019425,2]
[373369396,1752970237895,-460.0,0.00019425,2]
[373369397,1752970237905,-460.0,0.00019425,2]
[373369398,1752970237915,-222.63747951,0.00019425,2]
[373369399,1752970238123,-407.80747265,0.00019425,2]
[373369400,1752970238135,-30.32504784,0.00019425,2]
[373369401,1752970238145,-460.0,0.00019425,2]
[373369402,1752970238155,-375.11982344,0.00019425,2]
[373369403,1752970238274,-500.0,0.00018054,2]
[373369404,1752970238283,-500.0,0.00018054,2]
[373369405,1752970238293,-460.0,0.00018607,2]
[373369406,1752970238302,-84.88017656,0.00019425,2]
[373369407,1752970238312,-460.0,0.00019425,2]
[373369408,1752970238321,-460.0,0.00019425,2]
[373369409,1752970238331,-460.0,0.00019425,2]
[373369410,1752970238340,-460.0,0.00019426,2]
[373369411,1752970238349,-1417.81,0.00019427,2]
[373369412,1752970238358,-598.11,0.00019428,2]
[373369413,1752970238368,-478.3,0.00019428,2]
[373369414,1752970238377,-460.0,0.00019428,2]
[373369415,1752970238386,-460.0,0.00019429,2]
[373369416,1752970238396,-460.0,0.00019429,2]
[373369417,1752970238405,-160.0,0.0001947,2]
[373369418,1752970238414,-525.83049785,0.0001947,2]
[373369419,1752970238423,-476.34170116,0.0001947,2]
[373369420,1752970238432,-839.454303,0.0001947,2]
[373369421,1752970238441,-215.67360783,0.0001947,2]
[373369422,1752970238451,-214.52603969,0.0001947,2]
[373369423,1752970238460,-160.0,0.0001947,2]
[373369424,1752970238469,-160.0,0.0001947,2]
[373369425,1752970238478,-230.94145789,0.0001947,2]
[373369426,1752970238489,-160.0,0.0001947,2]
[373369427,1752970238499,-220.34625122,0.00019598,2]
[373369428,1752970238509,-3679.95675916,0.00019624,2]
[373369429,1752970238518,-460.0,0.00019698,2]
[373369430,1752970238527,-460.0,0.00019698,2]
[373369431,1752970238538,-837.38,0.00019698,2]
[373369432,1752970238548,-1199.84,0.00019698,2]
[373369433,1752970238557,-465.0,0.00019698,2]
[373369434,1752970238567,-460.0,0.00019699,2]
[373369435,1752970238577,-460.0,0.00019699,2]
[373369436,1752970238586,-585.85,0.00019699,2]
[373369437,1752970238595,-362.44,0.00019699,2]
[373369438,1752970238605,-660.77,0.00019699,2]
[373369439,1752970238614,-460.0,0.00019699,2]
[373369440,1752970238623,-460.0,0.00019699,2]
[373369441,1752970238633,-460.0,0.00019699,2]
[373369442,1752970238642,-460.0,0.00019699,2]
[373369443,1752970238651,-262.71,0.00019699,2]
[373369444,1752970238661,-460.0,0.000197,2]
[373369445,1752970238671,-1417.81,0.00019701,2]
[373369446,1752970238680,-598.11,0.00019702,2]
[373369447,1752970238689,-478.3,0.00019702,2]
[373369448,1752970238700,-460.0,0.00019702,2]
[373369449,1752970238715,-460.0,0.00019703,2]
[373369450,1752970238726,-460.0,0.00019703,2]
[373369451,1752970238736,-3679.95675916,0.00019866,2]
[373369452,1752970238746,-160.0,0.00019963,2]
[373369453,1752970238756,-460.0,0.00019972,2]
[373369454,1752970238765,-546.0,0.00019972,2]
[373369455,1752970238775,-837.38,0.00019972,2]
[373369456,1752970238785,-1199.84,0.00019972,2]
[373369457,1752970238794,-465.0,0.00019972,2]
[373369458,1752970238804,-460.0,0.00019973,2]
[373369459,1752970238813,-460.0,0.00019973,2]
[373369460,1752970238822,-660.77,0.00019973,2]
[373369461,1752970238831,-460.0,0.00019973,2]
[373369462,1752970238841,-590.36732532,0.00019973,2]
[373369463,1752970238850,-460.0,0.00019973,2]
[373369464,1752970238860,-460.0,0.00019974,2]
[373369465,1752970238869,-1417.81,0.00019975,2]
[373369466,1752970238879,-598.11,0.00019976,2]
[373369467,1752970238888,-478.3,0.00019976,2]
[373369468,1752970238898,-460.0,0.00019976,2]
[373369469,1752970238907,-460.0,0.00019977,2]
[373369470,1752970238916,-460.0,0.00019977,2]
[373369471,1752970238926,-164.672088,0.0001999,2]
[373369472,1752970238936,-42999.055434,0.0002,3]
[373369473,1752970238947,-3679.95675916,0.00020107,2]
[373369474,1752970238956,-177.734941,0.00020187,2]
[373369475,1752970238966,-460.0,0.00020246,2]
[373369476,1752970238976,-837.38,0.00020246,2]
[373369477,1752970238987,-1199.84,0.00020246,2]
[373369478,1752970238998,-465.0,0.00020246,2]
[373369479,1752970239007,-460.0,0.00020247,2]
[373369480,1752970239017,-460.0,0.00020247,2]
[373369481,1752970239027,-660.77,0.00020247,2]
[373369482,1752970239037,-460.0,0.00020247,2]
[373369483,1752970239047,-460.0,0.00020247,2]
[373369484,1752970239057,-460.0,0.00020248,2]
[373369485,1752970239068,-1417.81,0.00020249,2]
[373369486,1752970239078,-598.11,0.0002025,2]
[373369487,1752970239088,-478.3,0.0002025,2]
[373369488,1752970239098,-460.0,0.0002025,2]
[373369489,1752970239107,-460.0,0.00020251,2]
[373369490,1752970239117,-460.0,0.00020251,2]
[373369491,1752970239127,-3679.95675916,0.00020348,3]
[373369492,1752970239136,-260.0,0.0002051,2]
[373369493,1752970239147,-500.0,0.00020516,2]
[373369494,1752970239157,-460.0,0.0002052,2]
[373369495,1752970239167,-837.38,0.0002052,2]
[373369496,1752970239177,-1199.84,0.0002052,2]
[373369497,1752970239187,-465.0,0.0002052,2]
[373369498,1752970239198,-460.0,0.00020521,2]
[373369499,1752970239207,-460.0,0.00020521,2]
[373369500,1752970239217,-660.77,0.00020521,2]
[373369501,1752970239226,-460.0,0.00020521,2]
[373369502,1752970239235,-460.0,0.00020521,2]
[373369503,1752970239246,-460.0,0.00020522,2]
[373369504,1752970239256,-1417.81,0.00020523,2]
[373369505,1752970239266,-598.11,0.00020524,2]
[373369506,1752970239278,-478.3,0.00020524,2]
[373369507,1752970239287,-460.0,0.00020524,2]
[373369508,1752970239300,-460.0,0.00020525,2]
[373369509,1752970239311,-460.0,0.00020525,2]
[373369510,1752970239323,-3679.95675916,0.0002059,3]
[373369511,1752970239333,-1159.886,0.00020779,2]
[373369512,1752970239344,-178.503,0.00020779,2]
[373369513,1752970239355,-460.0,0.00020794,2]
[373369514,1752970239366,-837.38,0.00020794,2]
[373369515,1752970239376,-1199.84,0.00020794,2]
[373369517,1752970239386,-465.0,0.00020794,2]
[373369518,1752970239397,-460.0,0.00020795,2]
[373369519,1752970239411,-460.0,0.00020795,2]
[373369520,1752970239424,-660.77,0.00020795,2]
[373369521,1752970239438,-514.45,0.00020795,2]
[373369522,1752970239450,-460.0,0.00020795,2]
[373369523,1752970239460,-460.0,0.00020796,2]
[373369524,1752970239472,-1417.81,0.00020797,2]
[373369525,1752970239486,-598.11,0.00020798,2]
[373369526,1752970239501,-478.3,0.00020798,2]
[373369527,1752970239514,-460.0,0.00020798,2]
[373369528,1752970239526,-460.0,0.00020799,2]
[373369529,1752970239540,-460.0,0.00020799,2]
[373369530,1752970239552,-3679.95675916,0.00020831,4]
[373369531,1752970239566,-3000.0,0.00021,2]
[373369532,1752970239578,-500.0,0.00021006,2]
[373369533,1752970239590,-3000.0,0.0002101,2]
[373369534,1752970239613,-3000.0,0.0002102,2]
[373369535,1752970239632,-3000.0,0.0002103,2]
[373369536,1752970239646,-3000.0,0.0002104,2]
[373369537,1752970239658,-3000.0,0.0002105,2]
[373369538,1752970239671,-200.0,0.00021058,2]
[373369539,1752970239688,-3000.0,0.0002106,2]
[373369540,1752970239704,-460.0,0.00021068,2]
[373369541,1752970239718,-837.38,0.00021068,2]
[373369542,1752970239732,-1199.84,0.00021068,2]
[373369543,1752970239745,-465.0,0.00021068,2]
[373369544,1752970239760,-460.0,0.00021069,2]
[373369546,1752970239772,-460.0,0.00021069,2]
[373369549,1752970239785,-660.77,0.00021069,2]
[373369550,1752970239795,-460.0,0.00021069,2]
[373369551,1752970239806,-3000.0,0.0002107,2]
[373369552,1752970239818,-460.0,0.0002107,2]
[373369553,1752970239830,-1417.81,0.00021071,2]
[373369554,1752970239842,-598.11,0.00021072,2]
[373369555,1752970239854,-478.3,0.00021072,2]
[373369556,1752970239866,-460.0,0.00021072,2]
[373369557,1752970239879,-3679.95675916,0.00021072,4]
[373369559,1752970239891,-460.0,0.00021073,2]
[373369560,1752970239903,-460.0,0.00021073,2]
[373369561,1752970239919,-3000.0,0.0002108,2]
[373369562,1752970239932,-3000.0,0.0002109,2]
[373369563,1752970239948,-3000.0,0.000211,2]
[373369564,1752970239962,-500.0,0.000211,2]
[373369565,1752970239974,-3000.0,0.0002111,2]
[373369566,1752970239985,-3000.0,0.0002112,2]
[373369567,1752970239996,-3000.0,0.0002113,2]
[373369568,1752970240007,-3000.0,0.0002114,2]
[373369569,1752970240018,-3000.0,0.0002115,2]
[373369570,1752970240030,-199.740759,0.0002115,4]
[373369571,1752970240043,-3000.0,0.0002116,2]
[373369572,1752970240057,-3000.0,0.0002117,2]
[373369573,1752970240069,-3000.0,0.0002118,2]
[373369574,1752970240080,-3000.0,0.0002119,2]
[373369575,1752970240091,-3000.0,0.000212,2]
[373369576,1752970240102,-3000.0,0.0002121,2]
[373369577,1752970240113,-3000.0,0.0002122,2]
[373369578,1752970240125,-3000.0,0.0002123,2]
[373369579,1752970240138,-164.672088,0.00021238,2]